Workbook

Sheet Invoice
A1: شركة دي ام للتوريدات والملابس الجاهزة
A3: فاتورة تجارية Commercial Invoice
A5: رقم الفاتورة: | B5: 4902 | H5: التاريخ :
A6: المطلوب من: | I6: Requested From
B7: =B5&"_"&B6 -> 4902_
A8: م | B8: كود الصنف | C8: اسم الصنف | D8: الوحدة | E8: سعـر الوحـدة | F8: الكمية | G8: الإجمــالى | H8: عدد العبوات | I8: عدد الوحدات | K8: اسم الصنف
A9: =IF(C9="","",1) ->  | C9: =IFERROR(VLOOKUP(K9,الأسعار!$F:$G,2,0),"") ->  | D9: =IFERROR(VLOOKUP(C9,الأسعار!$A:$C,3,0),"") ->  | E9: =IFERROR(VLOOKUP(K9,الأسعار!$F:$H,3,0),"") ->  | G9: =IFERROR(E9*F9,"") -> 
A10: =IF(C10="","",A9+1) ->  | C10: =IFERROR(VLOOKUP(K10,الأسعار!$F:$G,2,0),"") ->  | D10: =IFERROR(VLOOKUP(C10,الأسعار!$A:$C,3,0),"") ->  | E10: =IFERROR(VLOOKUP(K10,الأسعار!$F:$H,3,0),"") ->  | G10: =IFERROR(E10*F10,"") -> 
A11: =IF(C11="","",A10+1) ->  | C11: =IFERROR(VLOOKUP(K11,الأسعار!$F:$G,2,0),"") ->  | D11: =IFERROR(VLOOKUP(C11,الأسعار!$A:$C,3,0),"") ->  | E11: =IFERROR(VLOOKUP(K11,الأسعار!$F:$H,3,0),"") -> 
C12: =IFERROR(VLOOKUP(K12,الأسعار!$F:$G,2,0),"") ->  | D12: =IFERROR(VLOOKUP(C12,الأسعار!$A:$C,3,0),"") ->  | E12: =IFERROR(VLOOKUP(K12,الأسعار!$F:$H,3,0),"") -> 
C13: =IFERROR(VLOOKUP(K13,الأسعار!$F:$G,2,0),"") ->  | D13: =IFERROR(VLOOKUP(C13,الأسعار!$A:$C,3,0),"") ->  | E13: =IFERROR(VLOOKUP(K13,الأسعار!$F:$H,3,0),"") -> 
C14: =IFERROR(VLOOKUP(K14,الأسعار!$F:$G,2,0),"") ->  | D14: =IFERROR(VLOOKUP(C14,الأسعار!$A:$C,3,0),"") ->  | E14: =IFERROR(VLOOKUP(K14,الأسعار!$F:$H,3,0),"") -> 
C15: =IFERROR(VLOOKUP(K15,الأسعار!$F:$G,2,0),"") ->  | D15: =IFERROR(VLOOKUP(C15,الأسعار!$A:$C,3,0),"") ->  | E15: =IFERROR(VLOOKUP(K15,الأسعار!$F:$H,3,0),"") -> 
C16: =IFERROR(VLOOKUP(K16,الأسعار!$F:$G,2,0),"") ->  | D16: =IFERROR(VLOOKUP(C16,الأسعار!$A:$C,3,0),"") ->  | E16: =IFERROR(VLOOKUP(K16,الأسعار!$F:$H,3,0),"") -> 
C17: =IFERROR(VLOOKUP(K17,الأسعار!$F:$G,2,0),"") ->  | D17: =IFERROR(VLOOKUP(C17,الأسعار!$A:$C,3,0),"") ->  | E17: =IFERROR(VLOOKUP(K17,الأسعار!$F:$H,3,0),"") -> 
C18: =IFERROR(VLOOKUP(K18,الأسعار!$F:$G,2,0),"") ->  | D18: =IFERROR(VLOOKUP(C18,الأسعار!$A:$C,3,0),"") ->  | E18: =IFERROR(VLOOKUP(K18,الأسعار!$F:$H,3,0),"") -> 
C19: =IFERROR(VLOOKUP(K19,الأسعار!$F:$G,2,0),"") ->  | D19: =IFERROR(VLOOKUP(C19,الأسعار!$A:$C,3,0),"") ->  | E19: =IFERROR(VLOOKUP(K19,الأسعار!$F:$H,3,0),"") -> 
C20: =IFERROR(VLOOKUP(K20,الأسعار!$F:$G,2,0),"") ->  | D20: =IFERROR(VLOOKUP(C20,الأسعار!$A:$C,3,0),"") ->  | E20: =IFERROR(VLOOKUP(K20,الأسعار!$F:$H,3,0),"") -> 
C21: =IFERROR(VLOOKUP(K21,الأسعار!$F:$G,2,0),"") ->  | D21: =IFERROR(VLOOKUP(C21,الأسعار!$A:$C,3,0),"") ->  | E21: =IFERROR(VLOOKUP(K21,الأسعار!$F:$H,3,0),"") -> 
C22: =IFERROR(VLOOKUP(K22,الأسعار!$F:$G,2,0),"") ->  | D22: =IFERROR(VLOOKUP(C22,الأسعار!$A:$C,3,0),"") ->  | E22: =IFERROR(VLOOKUP(K22,الأسعار!$F:$H,3,0),"") -> 
A23: =IF(C23="","",A22+1) ->  | C23: =IFERROR(VLOOKUP(K23,الأسعار!$F:$G,2,0),"") ->  | D23: =IFERROR(VLOOKUP(C23,الأسعار!$A:$C,3,0),"") ->  | E23: =IFERROR(VLOOKUP(K23,الأسعار!$F:$H,3,0),"") -> 
C24: =IFERROR(VLOOKUP(K24,الأسعار!$F:$G,2,0),"") ->  | D24: =IFERROR(VLOOKUP(C24,الأسعار!$A:$C,3,0),"") ->  | E24: =IFERROR(VLOOKUP(K24,الأسعار!$F:$H,3,0),"") -> 
G25: =SUM(G9:G24) -> 0 | H25: اجمالي الفاتورة
A26: رقم التسجيل بضريبة المبيعات | C26: ملف ضريبي رقم : | G26: =G25*-H26 -> 0 | I26: قيمة الخصم
A27: 168 - 267 - 215 | C27: 14/191/2259/5 | G27: =(G25-G26)*14% -> 0 | I27: ضريبة القيمة المضافة
A28: مأمورية : قصر النيل - وسط البلد | G28: =G25-G26+G27 -> 0 | H28: صافي الفاتورة
C29: =tafket(ROUND(G28,2),"جنيه مصري"," قرش ") -> صفر
A31: أسم البــــــائع | E31: استلمت البضاعة الموضحة بحالة جيدة | I31: Received Goods With Good Condition
E32: اسم المستلم : | I32: Rec. Name
E33: توقيع المستلم : | I33: Rec. S.G
E34: الخــــــاتـم : | I34: Stamp
E36: Thank You For Your Cooperation

Sheet Data
A1: رقم الفاتورة | B1: اسم العميل | C1: التاريخ | D1: كود الصنف | E1: اسم الصنف | F1: الوحدة | G1: سعـر الوحـدة | H1: الكمية | I1: الإجمــالى | J1: عدد العبوات | K1: عدد الوحدات

Sheet الأسعار
A1: الصنف | B1: السعر | C1: الوحدة | D1: العميل | E1: العملة | F1: الصنف المخصص | G1: Column1 | H1: Column2
A2: شامبو 30 | B2: 2.93508 | C2: عبوة | D2: هيلتون | E2: جم | F2: =A2&"_"&D2 -> شامبو 30_هيلتون | G2: =Table1[[#This Row],[الصنف]] -> شامبو 30 | H2: =ROUND(Table1[[#This Row],[السعر]],2) -> 2.94
A3: باث جل 30 | B3: 2.980053 | C3: عبوة | D3: هيلتون | E3: جم | F3: =A3&"_"&D3 -> باث جل 30_هيلتون | G3: =Table1[[#This Row],[الصنف]] -> باث جل 30 | H3: =ROUND(Table1[[#This Row],[السعر]],2) -> 2.98
A4: بلسم 30 | B4: 2.93508 | C4: عبوة | D4: هيلتون | E4: جم | F4: بلسم 30_هيلتون | G4: =Table1[[#This Row],[الصنف]] -> بلسم 30 | H4: =ROUND(Table1[[#This Row],[السعر]],2) -> 2.94
A5: لوشن 30 | B5: 2.957172 | C5: عبوة | D5: هيلتون | E5: جم | F5: لوشن 30_هيلتون | G5: =Table1[[#This Row],[الصنف]] -> لوشن 30 | H5: =ROUND(Table1[[#This Row],[السعر]],2) -> 2.96
A6: شامبو 45 | B6: 4.15014 | C6: عبوة | D6: هيلتون | E6: جم | F6: شامبو 45_هيلتون | G6: =Table1[[#This Row],[الصنف]] -> شامبو 45 | H6: =ROUND(Table1[[#This Row],[السعر]],2) -> 4.15
A7: بادي ووش 45 | B7: 4.734 | C7: قطعة | D7: هيلتون | E7: جم | F7: بادي ووش 45_هيلتون | G7: =Table1[[#This Row],[الصنف]] -> بادي ووش 45 | H7: =ROUND(Table1[[#This Row],[السعر]],2) -> 4.73
A8: بلسم 45 | B8: 4.22115 | C8: عبوة | D8: هيلتون | E8: جم | F8: بلسم 45_هيلتون | G8: =Table1[[#This Row],[الصنف]] -> بلسم 45 | H8: =ROUND(Table1[[#This Row],[السعر]],2) -> 4.22
A9: لوشن 45 | B9: 4.306362 | C9: عبوة | D9: هيلتون | E9: جم | F9: لوشن 45_هيلتون | G9: =Table1[[#This Row],[الصنف]] -> لوشن 45 | H9: =ROUND(Table1[[#This Row],[السعر]],2) -> 4.31
A10: مجموعة اسنان لوكس | B10: 9.0735 | C10: قطعة | D10: هيلتون | E10: جم | F10: مجموعة اسنان لوكس_هيلتون | G10: =Table1[[#This Row],[الصنف]] -> مجموعة اسنان لوكس | H10: =ROUND(Table1[[#This Row],[السعر]],2) -> 9.07
A11: مجموعة اسنان | B11: 6.270972 | C11: قطعة | D11: هيلتون | E11: جم | F11: مجموعة اسنان_هيلتون | G11: =Table1[[#This Row],[الصنف]] -> مجموعة اسنان | H11: =ROUND(Table1[[#This Row],[السعر]],2) -> 6.27
A12: مجموعة حلاقة | B12: 11.175396 | C12: قطعة | D12: هيلتون | E12: جم | F12: مجموعة حلاقة_هيلتون | G12: =Table1[[#This Row],[الصنف]] -> مجموعة حلاقة | H12: =ROUND(Table1[[#This Row],[السعر]],2) -> 11.18
A13: مجموعة حلاقة لوكس | B13: 14.92788 | C13: قطعة | D13: هيلتون | E13: جم | F13: مجموعة حلاقة لوكس_هيلتون | G13: =Table1[[#This Row],[الصنف]] -> مجموعة حلاقة لوكس | H13: =ROUND(Table1[[#This Row],[السعر]],2) -> 14.93
A14: لوف | B14: 9.26286 | C14: قطعة | D14: هيلتون | E14: جم | F14: لوف_هيلتون | G14: =Table1[[#This Row],[الصنف]] -> لوف | H14: =ROUND(Table1[[#This Row],[السعر]],2) -> 9.26
A15: سيونج كيت | B15: 0.990984 | C15: قطعة | D15: هيلتون | E15: جم | F15: سيونج كيت_هيلتون | G15: =Table1[[#This Row],[الصنف]] -> سيونج كيت | H15: =ROUND(Table1[[#This Row],[السعر]],2) -> 0.99
A16: شاور كاب | B16: 1.035168 | C16: قطعة | D16: هيلتون | E16: جم | F16: شاور كاب_هيلتون | G16: =Table1[[#This Row],[الصنف]] -> شاور كاب | H16: =ROUND(Table1[[#This Row],[السعر]],2) -> 1.04
A17: قطن سوابس | B17: 0.754284 | C17: قطعة | D17: هيلتون | E17: جم | F17: قطن سوابس_هيلتون | G17: =Table1[[#This Row],[الصنف]] -> قطن سوابس | H17: =ROUND(Table1[[#This Row],[السعر]],2) -> 0.75
A18: فينتي كيت | B18: 1.88571 | C18: قطعة | D18: هيلتون | E18: جم | F18: فينتي كيت_هيلتون | G18: =Table1[[#This Row],[الصنف]] -> فينتي كيت | H18: =ROUND(Table1[[#This Row],[السعر]],2) -> 1.89
A19: شوميت | B19: 2.2881 | C19: قطعة | D19: هيلتون | E19: جم | F19: شوميت_هيلتون | G19: =Table1[[#This Row],[الصنف]] -> شوميت | H19: =ROUND(Table1[[#This Row],[السعر]],2) -> 2.29
A20: لبيسة | B20: 1.578 | C20: قطعة | D20: هيلتون | E20: جم | F20: لبيسة_هيلتون | G20: =Table1[[#This Row],[الصنف]] -> لبيسة | H20: =ROUND(Table1[[#This Row],[السعر]],2) -> 1.58
A21: قطن ميكأب 2 ق | B21: 2.09874 | C21: قطعة | D21: هيلتون | E21: جم | F21: قطن ميكأب 2 ق_هيلتون | G21: =Table1[[#This Row],[الصنف]] -> قطن ميكأب 2 ق | H21: =ROUND(Table1[[#This Row],[السعر]],2) -> 2.1
A22: مبرد | B22: 1.180344 | C22: قطعة | D22: هيلتون | E22: جم | F22: مبرد_هيلتون | G22: =Table1[[#This Row],[الصنف]] -> مبرد | H22: =ROUND(Table1[[#This Row],[السعر]],2) -> 1.18
A23: مشط شعر | B23: 1.43598 | C23: قطعة | D23: هيلتون | E23: جم | F23: مشط شعر_هيلتون | G23: =Table1[[#This Row],[الصنف]] -> مشط شعر | H23: =ROUND(Table1[[#This Row],[السعر]],2) -> 1.44
A24: غسول فم | B24: 4.00812 | C24: عبوة | D24: هيلتون | E24: جم | F24: غسول فم_هيلتون | G24: =Table1[[#This Row],[الصنف]] -> غسول فم | H24: =ROUND(Table1[[#This Row],[السعر]],2) -> 4.01
A25: شبشب عادي | B25: 13.5708 | C25: قطعة | D25: هيلتون | E25: جم | F25: شبشب عادي_هيلتون | G25: =Table1[[#This Row],[الصنف]] -> شبشب عادي | H25: =ROUND(Table1[[#This Row],[السعر]],2) -> 13.57
A26: شبشب مميز | B26: 18.28902 | C26: قطعة | D26: هيلتون | E26: جم | F26: شبشب مميز_هيلتون | G26: =Table1[[#This Row],[الصنف]] -> شبشب مميز | H26: =ROUND(Table1[[#This Row],[السعر]],2) -> 18.29
A27: ملح حمام | B27: 8.34762 | C27: قطعة | D27: هيلتون | E27: جم | F27: ملح حمام_هيلتون | G27: =Table1[[#This Row],[الصنف]] -> ملح حمام | H27: =ROUND(Table1[[#This Row],[السعر]],2) -> 8.35
A28: سنتري باج | B28: 1.68846 | C28: قطعة | D28: هيلتون | E28: جم | F28: سنتري باج_هيلتون | G28: =Table1[[#This Row],[الصنف]] -> سنتري باج | H28: =ROUND(Table1[[#This Row],[السعر]],2) -> 1.69
A29: صابون 25 | B29: 1.622973 | C29: قطعة | D29: هيلتون | E29: جم | F29: صابون 25_هيلتون | G29: =Table1[[#This Row],[الصنف]] -> صابون 25 | H29: =ROUND(Table1[[#This Row],[السعر]],2) -> 1.62
A30: صابون 35 | B30: 2.565828 | C30: قطعة | D30: هيلتون | E30: جم | F30: صابون 35_هيلتون | G30: =Table1[[#This Row],[الصنف]] -> صابون 35 | H30: =ROUND(Table1[[#This Row],[السعر]],2) -> 2.57
A31: شامبو 40 ملل | B31: 5.55 | C31: عبوة | D31: JW MARRIOTT | E31: جم | F31: شامبو 40 ملل_JW MARRIOTT | G31: =Table1[[#This Row],[الصنف]] -> شامبو 40 ملل | H31: =ROUND(Table1[[#This Row],[السعر]],2) -> 5.55
A32: باث جل 40 ملل | B32: 5.97 | C32: عبوة | D32: JW MARRIOTT | E32: جم | F32: باث جل 40 ملل_JW MARRIOTT | G32: =Table1[[#This Row],[الصنف]] -> باث جل 40 ملل | H32: =ROUND(Table1[[#This Row],[السعر]],2) -> 5.97
A33: بلسم 40 ملل | B33: 5.55 | C33: عبوة | D33: JW MARRIOTT | E33: جم | F33: بلسم 40 ملل_JW MARRIOTT | G33: =Table1[[#This Row],[الصنف]] -> بلسم 40 ملل | H33: =ROUND(Table1[[#This Row],[السعر]],2) -> 5.55
A34: لوشن 40 ملل | B34: 7.21 | C34: عبوة | D34: JW MARRIOTT | E34: جم | F34: لوشن 40 ملل_JW MARRIOTT | G34: =Table1[[#This Row],[الصنف]] -> لوشن 40 ملل | H34: =ROUND(Table1[[#This Row],[السعر]],2) -> 7.21
A35: شامبو 80 ملل | B35: 8.54 | C35: عبوة | D35: JW MARRIOTT | E35: جم | F35: شامبو 80 ملل_JW MARRIOTT | G35: =Table1[[#This Row],[الصنف]] -> شامبو 80 ملل | H35: =ROUND(Table1[[#This Row],[السعر]],2) -> 8.54
A36: باث جل 80 ملل | B36: 8.68 | C36: عبوة | D36: JW MARRIOTT | E36: جم | F36: باث جل 80 ملل_JW MARRIOTT | G36: =Table1[[#This Row],[الصنف]] -> باث جل 80 ملل | H36: =ROUND(Table1[[#This Row],[السعر]],2) -> 8.68
A37: بلسم 80 ملل | B37: 8.78 | C37: عبوة | D37: JW MARRIOTT | E37: جم | F37: بلسم 80 ملل_JW MARRIOTT | G37: =Table1[[#This Row],[الصنف]] -> بلسم 80 ملل | H37: =ROUND(Table1[[#This Row],[السعر]],2) -> 8.78
A38: لوشن 80 ملل | B38: 9.4 | C38: عبوة | D38: JW MARRIOTT | E38: جم | F38: لوشن 80 ملل_JW MARRIOTT | G38: =Table1[[#This Row],[الصنف]] -> لوشن 80 ملل | H38: =ROUND(Table1[[#This Row],[السعر]],2) -> 9.4
A39: شاور كاب | B39: 3.67 | C39: قطعة | D39: JW MARRIOTT | E39: جم | F39: شاور كاب_JW MARRIOTT | G39: =Table1[[#This Row],[الصنف]] -> شاور كاب | H39: =ROUND(Table1[[#This Row],[السعر]],2) -> 3.67
A40: سيونج كيت | B40: 3.17 | C40: قطعة | D40: JW MARRIOTT | E40: جم | F40: سيونج كيت _JW MARRIOTT | G40: =Table1[[#This Row],[الصنف]] -> سيونج كيت | H40: =ROUND(Table1[[#This Row],[السعر]],2) -> 3.17
A41: فينتي كيت | B41: 3.94 | C41: قطعة | D41: JW MARRIOTT | E41: جم | F41: فينتي كيت _JW MARRIOTT | G41: =Table1[[#This Row],[الصنف]] -> فينتي كيت | H41: =ROUND(Table1[[#This Row],[السعر]],2) -> 3.94
A42: غسول فم | B42: 6.67 | C42: عبوة | D42: JW MARRIOTT | E42: جم | F42: غسول فم_JW MARRIOTT | G42: =Table1[[#This Row],[الصنف]] -> غسول فم | H42: =ROUND(Table1[[#This Row],[السعر]],2) -> 6.67
A43: شوميت | B43: 3.55 | C43: قطعة | D43: JW MARRIOTT | E43: جم | F43: شوميت_JW MARRIOTT | G43: =Table1[[#This Row],[الصنف]] -> شوميت | H43: =ROUND(Table1[[#This Row],[السعر]],2) -> 3.55
A44: لوف | B44: 9.42 | C44: قطعة | D44: JW MARRIOTT | E44: جم | F44: لوف_JW MARRIOTT | G44: =Table1[[#This Row],[الصنف]] -> لوف | H44: =ROUND(Table1[[#This Row],[السعر]],2) -> 9.42
A45: مجموعة اسنان | B45: 9.45 | C45: قطعة | D45: JW MARRIOTT | E45: جم | F45: مجموعة اسنان_JW MARRIOTT | G45: =Table1[[#This Row],[الصنف]] -> مجموعة اسنان | H45: =ROUND(Table1[[#This Row],[السعر]],2) -> 9.45
A46: مجموعة حلاقة | B46: 9.26 | C46: قطعة | D46: JW MARRIOTT | E46: جم | F46: مجموعة حلاقة_JW MARRIOTT | G46: =Table1[[#This Row],[الصنف]] -> مجموعة حلاقة | H46: =ROUND(Table1[[#This Row],[السعر]],2) -> 9.26
A47: مشط شعر | B47: 2.84 | C47: قطعة | D47: JW MARRIOTT | E47: جم | F47: مشط شعر_JW MARRIOTT | G47: =Table1[[#This Row],[الصنف]] -> مشط شعر | H47: =ROUND(Table1[[#This Row],[السعر]],2) -> 2.84
A48: ملح حمام | B48: 5.05 | C48: قطعة | D48: JW MARRIOTT | E48: جم | F48: ملح حمام_JW MARRIOTT | G48: =Table1[[#This Row],[الصنف]] -> ملح حمام | H48: =ROUND(Table1[[#This Row],[السعر]],2) -> 5.05
A49: سنتري باج | B49: 1.62 | C49: قطعة | D49: JW MARRIOTT | E49: جم | F49: سنتري باج_JW MARRIOTT | G49: =Table1[[#This Row],[الصنف]] -> سنتري باج | H49: =ROUND(Table1[[#This Row],[السعر]],2) -> 1.62
A50: صابون 30 جم | B50: 5.07 | C50: قطعة | D50: JW MARRIOTT | E50: جم | F50: صابون 30 جم_JW MARRIOTT | G50: =Table1[[#This Row],[الصنف]] -> صابون 30 جم | H50: =ROUND(Table1[[#This Row],[السعر]],2) -> 5.07
A51: صابون 50 جم | B51: 6.04 | C51: قطعة | D51: JW MARRIOTT | E51: جم | F51: صابون 50 جم_JW MARRIOTT | G51: =Table1[[#This Row],[الصنف]] -> صابون 50 جم | H51: =ROUND(Table1[[#This Row],[السعر]],2) -> 6.04
A52: جراكن شامبو 4 لتر | B52: 168 | C52: عبوة | D52: JW MARRIOTT | E52: جم | F52: جراكن شامبو 4 لتر_JW MARRIOTT | G52: =Table1[[#This Row],[الصنف]] -> جراكن شامبو 4 لتر | H52: =ROUND(Table1[[#This Row],[السعر]],2) -> 168
A53: جراكن شاور جل 4 لتر | B53: 168 | C53: عبوة | D53: JW MARRIOTT | E53: جم | F53: جراكن شاور جل 4 لتر_JW MARRIOTT | G53: =Table1[[#This Row],[الصنف]] -> جراكن شاور جل 4 لتر | H53: =ROUND(Table1[[#This Row],[السعر]],2) -> 168
A54: جراكن هاند سوب 4 لتر | B54: 168 | C54: عبوة | D54: JW MARRIOTT | E54: جم | F54: جراكن هاند سوب 4 لتر_JW MARRIOTT | G54: =Table1[[#This Row],[الصنف]] -> جراكن هاند سوب 4 لتر | H54: =ROUND(Table1[[#This Row],[السعر]],2) -> 168
A55: جراكن لوشن 4 لتر | B55: 184 | C55: عبوة | D55: JW MARRIOTT | E55: جم | F55: جراكن لوشن 4 لتر_JW MARRIOTT | G55: =Table1[[#This Row],[الصنف]] -> جراكن لوشن 4 لتر | H55: =ROUND(Table1[[#This Row],[السعر]],2) -> 184
A56: قطن سوابس | B56: 1.5 | C56: قطعة | D56: JW MARRIOTT | E56: جم | F56: قطن سوابس _JW MARRIOTT | G56: =Table1[[#This Row],[الصنف]] -> قطن سوابس | H56: =ROUND(Table1[[#This Row],[السعر]],2) -> 1.5
A57: مشط شعر | B57: 1.7 | C57: قطعة | D57: JW MARRIOTT | E57: جم | F57: مشط شعر_JW MARRIOTT | G57: =Table1[[#This Row],[الصنف]] -> مشط شعر | H57: =ROUND(Table1[[#This Row],[السعر]],2) -> 1.7
A58: شاور كاب | B58: 1.7 | C58: قطعة | D58: JW MARRIOTT | E58: جم | F58: شاور كاب_JW MARRIOTT | G58: =Table1[[#This Row],[الصنف]] -> شاور كاب | H58: =ROUND(Table1[[#This Row],[السعر]],2) -> 1.7
A59: شاور كاب | B59: 3.67 | C59: قطعة | D59: JW MARRIOTT | E59: جم | F59: شاور كاب_JW MARRIOTT | G59: =Table1[[#This Row],[الصنف]] -> شاور كاب | H59: =ROUND(Table1[[#This Row],[السعر]],2) -> 3.67
A60: فينتي كيت | B60: 3.94 | C60: قطعة | D60: JW MARRIOTT | E60: جم | F60: فينتي كيت_JW MARRIOTT | G60: =Table1[[#This Row],[الصنف]] -> فينتي كيت | H60: =ROUND(Table1[[#This Row],[السعر]],2) -> 3.94
A61: مجموعة حلاقة | B61: 9.26 | C61: قطعة | D61: JW MARRIOTT | E61: جم | F61: مجموعة حلاقة_JW MARRIOTT | G61: =Table1[[#This Row],[الصنف]] -> مجموعة حلاقة | H61: =ROUND(Table1[[#This Row],[السعر]],2) -> 9.26
A62: سنتري باج | B62: 1.62 | C62: قطعة | D62: JW MARRIOTT | E62: جم | F62: سنتري باج_JW MARRIOTT | G62: =Table1[[#This Row],[الصنف]] -> سنتري باج | H62: =ROUND(Table1[[#This Row],[السعر]],2) -> 1.62
A63: شامبو 40 ملل | B63: 6.28 | C63: عبوة | D63: Dusit | E63: جم | F63: شامبو 40 ملل_Dusit | G63: =Table1[[#This Row],[الصنف]] -> شامبو 40 ملل | H63: =ROUND(Table1[[#This Row],[السعر]],2) -> 6.28
A64: باث جل 40 ملل | B64: 6.75 | C64: عبوة | D64: Dusit | E64: جم | F64: باث جل 40 ملل_Dusit | G64: =Table1[[#This Row],[الصنف]] -> باث جل 40 ملل | H64: =ROUND(Table1[[#This Row],[السعر]],2) -> 6.75
A65: بلسم 40 ملل | B65: 6.75 | C65: عبوة | D65: Dusit | E65: جم | F65: بلسم 40 ملل_Dusit | G65: =Table1[[#This Row],[الصنف]] -> بلسم 40 ملل | H65: =ROUND(Table1[[#This Row],[السعر]],2) -> 6.75
A66: لوشن 40 ملل | B66: 7.22 | C66: عبوة | D66: Dusit | E66: جم | F66: لوشن 40 ملل_Dusit | G66: =Table1[[#This Row],[الصنف]] -> لوشن 40 ملل | H66: =ROUND(Table1[[#This Row],[السعر]],2) -> 7.22
A67: شامبو 80 ملل | B67: 10.21 | C67: عبوة | D67: Dusit | E67: جم | F67: =A67&"_"&D67 -> شامبو 80 ملل_Dusit | G67: =Table1[[#This Row],[الصنف]] -> شامبو 80 ملل | H67: =ROUND(Table1[[#This Row],[السعر]],2) -> 10.21
A68: باث جل 80 ملل | B68: 10.71 | C68: عبوة | D68: Dusit | E68: جم | F68: باث جل 80 ملل_Dusit | G68: =Table1[[#This Row],[الصنف]] -> باث جل 80 ملل | H68: =ROUND(Table1[[#This Row],[السعر]],2) -> 10.71
A69: بلسم 80 ملل | B69: 10.71 | C69: عبوة | D69: Dusit | E69: جم | F69: بلسم 80 ملل_Dusit | G69: =Table1[[#This Row],[الصنف]] -> بلسم 80 ملل | H69: =ROUND(Table1[[#This Row],[السعر]],2) -> 10.71
A70: لوشن 80 ملل | B70: 11.93 | C70: عبوة | D70: Dusit | E70: جم | F70: لوشن 80 ملل_Dusit | G70: =Table1[[#This Row],[الصنف]] -> لوشن 80 ملل | H70: =ROUND(Table1[[#This Row],[السعر]],2) -> 11.93
A71: شاور كاب | B71: 4.71 | C71: قطعة | D71: Dusit | E71: جم | F71: شاور كاب_Dusit | G71: =Table1[[#This Row],[الصنف]] -> شاور كاب | H71: =ROUND(Table1[[#This Row],[السعر]],2) -> 4.71
A72: سيونج كيت | B72: 4.24 | C72: قطعة | D72: Dusit | E72: جم | F72: سيونج كيت _Dusit | G72: =Table1[[#This Row],[الصنف]] -> سيونج كيت | H72: =ROUND(Table1[[#This Row],[السعر]],2) -> 4.24
A73: قطن سوابس | B73: 3.25 | C73: قطعة | D73: Dusit | E73: جم | F73: قطن سوابس_Dusit | G73: =Table1[[#This Row],[الصنف]] -> قطن سوابس | H73: =ROUND(Table1[[#This Row],[السعر]],2) -> 3.25
A74: فينتي كيت | B74: 5.02 | C74: قطعة | D74: Dusit | E74: جم | F74: فينتي كيت _Dusit | G74: =Table1[[#This Row],[الصنف]] -> فينتي كيت | H74: =ROUND(Table1[[#This Row],[السعر]],2) -> 5.02
A75: غسول فم | B75: 11.93 | C75: عبوة | D75: Dusit | E75: جم | F75: غسول فم_Dusit | G75: =Table1[[#This Row],[الصنف]] -> غسول فم | H75: =ROUND(Table1[[#This Row],[السعر]],2) -> 11.93
A76: شوميت | B76: 4.24 | C76: قطعة | D76: Dusit | E76: جم | F76: شوميت_Dusit | G76: =Table1[[#This Row],[الصنف]] -> شوميت | H76: =ROUND(Table1[[#This Row],[السعر]],2) -> 4.24
A77: لوف | B77: 11.62 | C77: قطعة | D77: Dusit | E77: جم | F77: لوف_Dusit | G77: =Table1[[#This Row],[الصنف]] -> لوف | H77: =ROUND(Table1[[#This Row],[السعر]],2) -> 11.62
A78: مجموعة اسنان | B78: 10.99 | C78: قطعة | D78: Dusit | E78: جم | F78: مجموعة اسنان_Dusit | G78: =Table1[[#This Row],[الصنف]] -> مجموعة اسنان | H78: =ROUND(Table1[[#This Row],[السعر]],2) -> 10.99
A79: مجموعة حلاقة | B79: 9.26 | C79: قطعة | D79: Dusit | E79: جم | F79: مجموعة حلاقة_Dusit | G79: =Table1[[#This Row],[الصنف]] -> مجموعة حلاقة | H79: =ROUND(Table1[[#This Row],[السعر]],2) -> 9.26
A80: مشط شعر | B80: 4.24 | C80: قطعة | D80: Dusit | E80: جم | F80: مشط شعر_Dusit | G80: =Table1[[#This Row],[الصنف]] -> مشط شعر | H80: =ROUND(Table1[[#This Row],[السعر]],2) -> 4.24
A81: ملح حمام | B81: 8.48 | C81: قطعة | D81: Dusit | E81: جم | F81: ملح حمام_Dusit | G81: =Table1[[#This Row],[الصنف]] -> ملح حمام | H81: =ROUND(Table1[[#This Row],[السعر]],2) -> 8.48
A82: سنتري باج | B82: 2.83 | C82: قطعة | D82: Dusit | E82: جم | F82: سنتري باج_Dusit | G82: =Table1[[#This Row],[الصنف]] -> سنتري باج | H82: =ROUND(Table1[[#This Row],[السعر]],2) -> 2.83
A83: صابون 30 جم | B83: 5.75 | C83: قطعة | D83: Dusit | E83: جم | F83: صابون 30 جم_Dusit | G83: =Table1[[#This Row],[الصنف]] -> صابون 30 جم | H83: =ROUND(Table1[[#This Row],[السعر]],2) -> 5.75
A84: صابون 50 جم | B84: 7.69 | C84: قطعة | D84: Dusit | E84: جم | F84: صابون 50 جم_Dusit | G84: =Table1[[#This Row],[الصنف]] -> صابون 50 جم | H84: =ROUND(Table1[[#This Row],[السعر]],2) -> 7.69
A85: شامبو 40 ملل | B85: 5.1975 | C85: عبوة | D85: سوفتيل الجزيرة | E85: جم | F85: شامبو 40 ملل_سوفتيل الجزيرة | G85: =Table1[[#This Row],[الصنف]] -> شامبو 40 ملل | H85: =ROUND(Table1[[#This Row],[السعر]],2) -> 5.2
A86: شاور جل 40 ملل | B86: 5.1975 | C86: عبوة | D86: سوفتيل الجزيرة | E86: جم | F86: شاور جل 40 ملل_سوفتيل الجزيرة | G86: =Table1[[#This Row],[الصنف]] -> شاور جل 40 ملل | H86: =ROUND(Table1[[#This Row],[السعر]],2) -> 5.2
A87: بلسم 40 ملل | B87: 5.1975 | C87: عبوة | D87: سوفتيل الجزيرة | E87: جم | F87: بلسم 40 ملل_سوفتيل الجزيرة | G87: =Table1[[#This Row],[الصنف]] -> بلسم 40 ملل | H87: =ROUND(Table1[[#This Row],[السعر]],2) -> 5.2
A88: لوشن 40 ملل | B88: 6.46 | C88: عبوة | D88: سوفتيل الجزيرة | E88: جم | F88: لوشن 40 ملل_سوفتيل الجزيرة | G88: =Table1[[#This Row],[الصنف]] -> لوشن 40 ملل | H88: =ROUND(Table1[[#This Row],[السعر]],2) -> 6.46
A89: شامبو تيوب 80 | B89: 8.173 | C89: عبوة | D89: سوفتيل الجزيرة | E89: جم | F89: شامبو تيوب 80_سوفتيل الجزيرة | G89: =Table1[[#This Row],[الصنف]] -> شامبو تيوب 80 | H89: =ROUND(Table1[[#This Row],[السعر]],2) -> 8.17
A90: بادي ووش تيوب 80 | B90: 8.173 | C90: قطعة | D90: سوفتيل الجزيرة | E90: جم | F90: بادي ووش تيوب 80_سوفتيل الجزيرة | G90: =Table1[[#This Row],[الصنف]] -> بادي ووش تيوب 80 | H90: =ROUND(Table1[[#This Row],[السعر]],2) -> 8.17
A91: بلسم تيوب 80 | B91: 8.173 | C91: عبوة | D91: سوفتيل الجزيرة | E91: جم | F91: بلسم تيوب 80_سوفتيل الجزيرة | G91: =Table1[[#This Row],[الصنف]] -> بلسم تيوب 80 | H91: =ROUND(Table1[[#This Row],[السعر]],2) -> 8.17
A92: لوشن تيوب 80 | B92: 10.175 | C92: عبوة | D92: سوفتيل الجزيرة | E92: جم | F92: لوشن تيوب 80_سوفتيل الجزيرة | G92: =Table1[[#This Row],[الصنف]] -> لوشن تيوب 80 | H92: =ROUND(Table1[[#This Row],[السعر]],2) -> 10.18
A93: شاور كاب | B93: 3.4 | C93: قطعة | D93: سوفتيل الجزيرة | E93: جم | F93: شاور كاب_سوفتيل الجزيرة | G93: =Table1[[#This Row],[الصنف]] -> شاور كاب | H93: =ROUND(Table1[[#This Row],[السعر]],2) -> 3.4
A94: سيونج كيت | B94: 2.972 | C94: قطعة | D94: سوفتيل الجزيرة | E94: جم | F94: سيونج كيت _سوفتيل الجزيرة | G94: =Table1[[#This Row],[الصنف]] -> سيونج كيت | H94: =ROUND(Table1[[#This Row],[السعر]],2) -> 2.97
A95: مجموعة اسنان | B95: 8.6 | C95: قطعة | D95: سوفتيل الجزيرة | E95: جم | F95: مجموعة اسنان_سوفتيل الجزيرة | G95: =Table1[[#This Row],[الصنف]] -> مجموعة اسنان | H95: =ROUND(Table1[[#This Row],[السعر]],2) -> 8.6
A96: مجموعة حلاقة | B96: 7.8 | C96: قطعة | D96: سوفتيل الجزيرة | E96: جم | F96: مجموعة حلاقة_سوفتيل الجزيرة | G96: =Table1[[#This Row],[الصنف]] -> مجموعة حلاقة | H96: =ROUND(Table1[[#This Row],[السعر]],2) -> 7.8
A97: قطن سوابس 3 عود | B97: 2 | C97: قطعة | D97: سوفتيل الجزيرة | E97: جم | F97: قطن سوابس 3 عود_سوفتيل الجزيرة | G97: =Table1[[#This Row],[الصنف]] -> قطن سوابس 3 عود | H97: =ROUND(Table1[[#This Row],[السعر]],2) -> 2
A98: قطن سوابس 2 عود | B98: 2.1 | C98: قطعة | D98: سوفتيل الجزيرة | E98: جم | F98: قطن سوابس 2 عود_سوفتيل الجزيرة | G98: =Table1[[#This Row],[الصنف]] -> قطن سوابس 2 عود | H98: =ROUND(Table1[[#This Row],[السعر]],2) -> 2.1
A99: قطن ميكأب | B99: 2.3 | C99: قطعة | D99: سوفتيل الجزيرة | E99: جم | F99: قطن ميكأب_سوفتيل الجزيرة | G99: =Table1[[#This Row],[الصنف]] -> قطن ميكأب | H99: =ROUND(Table1[[#This Row],[السعر]],2) -> 2.3
A100: صابون 30 | B100: 4.731 | C100: قطعة | D100: سوفتيل الجزيرة | E100: جم | F100: صابون 30_سوفتيل الجزيرة | G100: =Table1[[#This Row],[الصنف]] -> صابون 30 | H100: =ROUND(Table1[[#This Row],[السعر]],2) -> 4.73
A101: صابون 50 | B101: 6.338 | C101: قطعة | D101: سوفتيل الجزيرة | E101: جم | F101: صابون 50_سوفتيل الجزيرة | G101: =Table1[[#This Row],[الصنف]] -> صابون 50 | H101: =ROUND(Table1[[#This Row],[السعر]],2) -> 6.34
A102: شاور كاب | B102: 0.95 | C102: قطعة | D102: جاز | E102: جم | F102: شاور كاب_جاز | G102: =Table1[[#This Row],[الصنف]] -> شاور كاب | H102: =ROUND(Table1[[#This Row],[السعر]],2) -> 0.95
A103: سيونج كيت | B103: 0.85 | C103: قطعة | D103: جاز | E103: جم | F103: سيونج كيت _جاز | G103: =Table1[[#This Row],[الصنف]] -> سيونج كيت | H103: =ROUND(Table1[[#This Row],[السعر]],2) -> 0.85
A104: قطن سوابس | B104: 0.85 | C104: قطعة | D104: جاز | E104: جم | F104: قطن سوابس_جاز | G104: =Table1[[#This Row],[الصنف]] -> قطن سوابس | H104: =ROUND(Table1[[#This Row],[السعر]],2) -> 0.85
A105: قطن ميكأب ( 1 قطعة ) | B105: 1.1 | C105: قطعة | D105: جاز | E105: جم | F105: قطن ميكأب ( 1 قطعة )_جاز | G105: =Table1[[#This Row],[الصنف]] -> قطن ميكأب ( 1 قطعة ) | H105: =ROUND(Table1[[#This Row],[السعر]],2) -> 1.1
A106: قطن ميكأب ( 2 قطعة ) | B106: 1.75 | C106: قطعة | D106: جاز | E106: جم | F106: قطن ميكأب ( 2 قطعة )_جاز | G106: =Table1[[#This Row],[الصنف]] -> قطن ميكأب ( 2 قطعة ) | H106: =ROUND(Table1[[#This Row],[السعر]],2) -> 1.75
A107: فينتي كيت | B107: 3 | C107: قطعة | D107: جاز | E107: جم | F107: فينتي كيت_جاز | G107: =Table1[[#This Row],[الصنف]] -> فينتي كيت | H107: =ROUND(Table1[[#This Row],[السعر]],2) -> 3
A108: غسول فم | B108: 4 | C108: عبوة | D108: جاز | E108: جم | F108: غسول فم_جاز | G108: =Table1[[#This Row],[الصنف]] -> غسول فم | H108: =ROUND(Table1[[#This Row],[السعر]],2) -> 4
A109: شوميت | B109: 2 | C109: قطعة | D109: جاز | E109: جم | F109: شوميت_جاز | G109: =Table1[[#This Row],[الصنف]] -> شوميت | H109: =ROUND(Table1[[#This Row],[السعر]],2) -> 2
A110: لوف | B110: 4.25 | C110: قطعة | D110: جاز | E110: جم | F110: لوف_جاز | G110: =Table1[[#This Row],[الصنف]] -> لوف | H110: =ROUND(Table1[[#This Row],[السعر]],2) -> 4.25
A111: مجموعة اسنان | B111: 5.5 | C111: قطعة | D111: جاز | E111: جم | F111: مجموعة اسنان_جاز | G111: =Table1[[#This Row],[الصنف]] -> مجموعة اسنان | H111: =ROUND(Table1[[#This Row],[السعر]],2) -> 5.5
A112: مجموعة حلاقة | B112: 5.5 | C112: قطعة | D112: جاز | E112: جم | F112: مجموعة حلاقة_جاز | G112: =Table1[[#This Row],[الصنف]] -> مجموعة حلاقة | H112: =ROUND(Table1[[#This Row],[السعر]],2) -> 5.5
A113: مشط شعر | B113: 1.5 | C113: قطعة | D113: جاز | E113: جم | F113: مشط شعر_جاز | G113: =Table1[[#This Row],[الصنف]] -> مشط شعر | H113: =ROUND(Table1[[#This Row],[السعر]],2) -> 1.5
A114: ملح حمام | B114: 4.5 | C114: قطعة | D114: جاز | E114: جم | F114: ملح حمام_جاز | G114: =Table1[[#This Row],[الصنف]] -> ملح حمام | H114: =ROUND(Table1[[#This Row],[السعر]],2) -> 4.5
A115: سنتري باج | B115: 1 | C115: قطعة | D115: جاز | E115: جم | F115: سنتري باج_جاز | G115: =Table1[[#This Row],[الصنف]] -> سنتري باج | H115: =ROUND(Table1[[#This Row],[السعر]],2) -> 1
A116: مبرد | B116: 1 | C116: قطعة | D116: جاز | E116: جم | F116: مبرد_جاز | G116: =Table1[[#This Row],[الصنف]] -> مبرد | H116: =ROUND(Table1[[#This Row],[السعر]],2) -> 1
A117: لبيسة | B117: 1.5 | C117: قطعة | D117: جاز | E117: جم | F117: لبيسة_جاز | G117: =Table1[[#This Row],[الصنف]] -> لبيسة | H117: =ROUND(Table1[[#This Row],[السعر]],2) -> 1.5
A118: صابون 25 جم | B118: 2 | C118: قطعة | D118: جاز | E118: جم | F118: صابون 25 جم_جاز | G118: =Table1[[#This Row],[الصنف]] -> صابون 25 جم | H118: =ROUND(Table1[[#This Row],[السعر]],2) -> 2
A119: صابون 35 جم | B119: 2.4 | C119: قطعة | D119: جاز | E119: جم | F119: صابون 35 جم_جاز | G119: =Table1[[#This Row],[الصنف]] -> صابون 35 جم | H119: =ROUND(Table1[[#This Row],[السعر]],2) -> 2.4
A120: صابون 50 جم | B120: 3.75 | C120: قطعة | D120: جاز | E120: جم | F120: صابون 50 جم_جاز | G120: =Table1[[#This Row],[الصنف]] -> صابون 50 جم | H120: =ROUND(Table1[[#This Row],[السعر]],2) -> 3.75
A121: شامبو 30 ملل | B121: 1.9 | C121: عبوة | D121: شتايجن | E121: جم | F121: شامبو 30 ملل_شتايجن | G121: =Table1[[#This Row],[الصنف]] -> شامبو 30 ملل | H121: =ROUND(Table1[[#This Row],[السعر]],2) -> 1.9
A122: رغوة 30 ملل | B122: 1.9 | C122: عبوة | D122: شتايجن | E122: جم | F122: رغوة 30 ملل_شتايجن | G122: =Table1[[#This Row],[الصنف]] -> رغوة 30 ملل | H122: =ROUND(Table1[[#This Row],[السعر]],2) -> 1.9
A123: بلسم 30 ملل | B123: 2.15 | C123: عبوة | D123: شتايجن | E123: جم | F123: بلسم 30 ملل_شتايجن | G123: =Table1[[#This Row],[الصنف]] -> بلسم 30 ملل | H123: =ROUND(Table1[[#This Row],[السعر]],2) -> 2.15
A124: لوشن 30 ملل | B124: 2.15 | C124: عبوة | D124: شتايجن | E124: جم | F124: لوشن 30 ملل_شتايجن | G124: =Table1[[#This Row],[الصنف]] -> لوشن 30 ملل | H124: =ROUND(Table1[[#This Row],[السعر]],2) -> 2.15
A125: شاور كاب | B125: 0.95 | C125: قطعة | D125: شتايجن | E125: جم | F125: شاور كاب_شتايجن | G125: =Table1[[#This Row],[الصنف]] -> شاور كاب | H125: =ROUND(Table1[[#This Row],[السعر]],2) -> 0.95
A126: سيونج كيت | B126: 0.85 | C126: قطعة | D126: شتايجن | E126: جم | F126: سيونج كيت _شتايجن | G126: =Table1[[#This Row],[الصنف]] -> سيونج كيت | H126: =ROUND(Table1[[#This Row],[السعر]],2) -> 0.85
A127: قطن سوابس | B127: 0.85 | C127: قطعة | D127: شتايجن | E127: جم | F127: قطن سوابس_شتايجن | G127: =Table1[[#This Row],[الصنف]] -> قطن سوابس | H127: =ROUND(Table1[[#This Row],[السعر]],2) -> 0.85
A128: قطن ميكأب ( 1 قطعة ) | B128: 1.1 | C128: قطعة | D128: شتايجن | E128: جم | F128: قطن ميكأب ( 1 قطعة )_شتايجن | G128: =Table1[[#This Row],[الصنف]] -> قطن ميكأب ( 1 قطعة ) | H128: =ROUND(Table1[[#This Row],[السعر]],2) -> 1.1
A129: قطن ميكأب ( 2 قطعة ) | B129: 1.75 | C129: قطعة | D129: شتايجن | E129: جم | F129: قطن ميكأب ( 2 قطعة )_شتايجن | G129: =Table1[[#This Row],[الصنف]] -> قطن ميكأب ( 2 قطعة ) | H129: =ROUND(Table1[[#This Row],[السعر]],2) -> 1.75
A130: فينتي كيت | B130: 3 | C130: قطعة | D130: شتايجن | E130: جم | F130: فينتي كيت _شتايجن | G130: =Table1[[#This Row],[الصنف]] -> فينتي كيت | H130: =ROUND(Table1[[#This Row],[السعر]],2) -> 3
A131: غسول فم | B131: 4 | C131: عبوة | D131: شتايجن | E131: جم | F131: =A131&"_"&D131 -> غسول فم_شتايجن | G131: =Table1[[#This Row],[الصنف]] -> غسول فم | H131: =ROUND(Table1[[#This Row],[السعر]],2) -> 4
A132: شوميت | B132: 2 | C132: قطعة | D132: شتايجن | E132: جم | F132: شوميت_شتايجن | G132: =Table1[[#This Row],[الصنف]] -> شوميت | H132: =ROUND(Table1[[#This Row],[السعر]],2) -> 2
A133: لوف | B133: 4.25 | C133: قطعة | D133: شتايجن | E133: جم | F133: لوف_شتايجن | G133: =Table1[[#This Row],[الصنف]] -> لوف | H133: =ROUND(Table1[[#This Row],[السعر]],2) -> 4.25
A134: مجموعة اسنان | B134: 5.5 | C134: قطعة | D134: شتايجن | E134: جم | F134: مجموعة اسنان_شتايجن | G134: =Table1[[#This Row],[الصنف]] -> مجموعة اسنان | H134: =ROUND(Table1[[#This Row],[السعر]],2) -> 5.5
A135: مجموعة حلاقة | B135: 5.5 | C135: قطعة | D135: شتايجن | E135: جم | F135: مجموعة حلاقة_شتايجن | G135: =Table1[[#This Row],[الصنف]] -> مجموعة حلاقة | H135: =ROUND(Table1[[#This Row],[السعر]],2) -> 5.5
A136: مشط شعر | B136: 1.5 | C136: قطعة | D136: شتايجن | E136: جم | F136: مشط شعر_شتايجن | G136: =Table1[[#This Row],[الصنف]] -> مشط شعر | H136: =ROUND(Table1[[#This Row],[السعر]],2) -> 1.5
A137: شاور كاب بدون علبة | B137: 0.85 | C137: قطعة | D137: شتايجن | E137: جم | F137: شاور كاب بدون علبة_شتايجن | G137: =Table1[[#This Row],[الصنف]] -> شاور كاب بدون علبة | H137: =ROUND(Table1[[#This Row],[السعر]],2) -> 0.85
A138: سنتري باج | B138: 1 | C138: قطعة | D138: شتايجن | E138: جم | F138: سنتري باج_شتايجن | G138: =Table1[[#This Row],[الصنف]] -> سنتري باج | H138: =ROUND(Table1[[#This Row],[السعر]],2) -> 1
A139: مبرد | B139: 1 | C139: قطعة | D139: شتايجن | E139: جم | F139: مبرد_شتايجن | G139: =Table1[[#This Row],[الصنف]] -> مبرد | H139: =ROUND(Table1[[#This Row],[السعر]],2) -> 1
A140: لبيسة | B140: 1.5 | C140: قطعة | D140: شتايجن | E140: جم | F140: لبيسة_شتايجن | G140: =Table1[[#This Row],[الصنف]] -> لبيسة | H140: =ROUND(Table1[[#This Row],[السعر]],2) -> 1.5
A141: صابون 25 جم | B141: 2 | C141: قطعة | D141: شتايجن | E141: جم | F141: صابون 25 جم_شتايجن | G141: =Table1[[#This Row],[الصنف]] -> صابون 25 جم | H141: =ROUND(Table1[[#This Row],[السعر]],2) -> 2
A142: صابون 35 جم | B142: 2.4 | C142: قطعة | D142: شتايجن | E142: جم | F142: صابون 35 جم_شتايجن | G142: =Table1[[#This Row],[الصنف]] -> صابون 35 جم | H142: =ROUND(Table1[[#This Row],[السعر]],2) -> 2.4
A143: صابون 50 جم | B143: 3.75 | C143: قطعة | D143: شتايجن | E143: جم | F143: صابون 50 جم_شتايجن | G143: =Table1[[#This Row],[الصنف]] -> صابون 50 جم | H143: =ROUND(Table1[[#This Row],[السعر]],2) -> 3.75
A144: علب اسنان مطبوعة فارغة | B144: 0.85 | C144: قطعة | D144: شتايجن | E144: جم | F144: علب اسنان مطبوعة فارغة_شتايجن | G144: =Table1[[#This Row],[الصنف]] -> علب اسنان مطبوعة فارغة | H144: =ROUND(Table1[[#This Row],[السعر]],2) -> 0.85
A145: علب لوف مطبوعة فارغة | B145: 0.95 | C145: عبوة | D145: شتايجن | E145: جم | F145: علب لوف مطبوعة فارغة_شتايجن | G145: =Table1[[#This Row],[الصنف]] -> علب لوف مطبوعة فارغة | H145: =ROUND(Table1[[#This Row],[السعر]],2) -> 0.95
A146: علب سنتري مطبوعة فارغة | B146: 0.3 | C146: عبوة | D146: شتايجن | E146: جم | F146: علب سنتري مطبوعة فارغة_شتايجن | G146: =Table1[[#This Row],[الصنف]] -> علب سنتري مطبوعة فارغة | H146: =ROUND(Table1[[#This Row],[السعر]],2) -> 0.3
A147: علب سيونج كيت مطبوعة فارغة | B147: 0.33 | C147: عبوة | D147: شتايجن | E147: جم | F147: علب سيونج كيت مطبوعة فارغة_شتايجن | G147: =Table1[[#This Row],[الصنف]] -> علب سيونج كيت مطبوعة فارغة | H147: =ROUND(Table1[[#This Row],[السعر]],2) -> 0.33
A148: علب حلاقة مطبوعة فارغة | B148: 0.85 | C148: قطعة | D148: شتايجن | E148: جم | F148: علب حلاقة مطبوعة فارغة_شتايجن | G148: =Table1[[#This Row],[الصنف]] -> علب حلاقة مطبوعة فارغة | H148: =ROUND(Table1[[#This Row],[السعر]],2) -> 0.85
A149: علب شوميت مطبوعة فارغة | B149: 0.71 | C149: عبوة | D149: شتايجن | E149: جم | F149: علب شوميت مطبوعة فارغة_شتايجن | G149: =Table1[[#This Row],[الصنف]] -> علب شوميت مطبوعة فارغة | H149: =ROUND(Table1[[#This Row],[السعر]],2) -> 0.71
A150: علب قطن ميكأب مطبوعة فارغة | B150: 0.47 | C150: عبوة | D150: شتايجن | E150: جم | F150: علب قطن ميكأب مطبوعة فارغة_شتايجن | G150: =Table1[[#This Row],[الصنف]] -> علب قطن ميكأب مطبوعة فارغة | H150: =ROUND(Table1[[#This Row],[السعر]],2) -> 0.47
A151: علب شاور كاب ميكأب مطبوعة فارغة | B151: 0.47 | C151: عبوة | D151: شتايجن | E151: جم | F151: علب شاور كاب ميكأب مطبوعة فارغة_شتايجن | G151: =Table1[[#This Row],[الصنف]] -> علب شاور كاب ميكأب مطبوعة فارغة | H151: =ROUND(Table1[[#This Row],[السعر]],2) -> 0.47
A152: شاور كاب بدون علبة | B152: 0.85 | C152: قطعة | D152: شتايجن | E152: جم | F152: شاور كاب بدون علبة_شتايجن | G152: =Table1[[#This Row],[الصنف]] -> شاور كاب بدون علبة | H152: =ROUND(Table1[[#This Row],[السعر]],2) -> 0.85
A153: قطن سوابس بدون علبة | B153: 0.6 | C153: قطعة | D153: شتايجن | E153: جم | F153: قطن سوابس بدون علبة_شتايجن | G153: =Table1[[#This Row],[الصنف]] -> قطن سوابس بدون علبة | H153: =ROUND(Table1[[#This Row],[السعر]],2) -> 0.6
A154: قطن ميكأب بدون علبة | B154: 1.4 | C154: قطعة | D154: شتايجن | E154: جم | F154: قطن ميكأب بدون علبة_شتايجن | G154: =Table1[[#This Row],[الصنف]] -> قطن ميكأب بدون علبة | H154: =ROUND(Table1[[#This Row],[السعر]],2) -> 1.4
A155: مبرد بدون علبة | B155: 0.8 | C155: قطعة | D155: شتايجن | E155: جم | F155: مبرد بدون علبة_شتايجن | G155: =Table1[[#This Row],[الصنف]] -> مبرد بدون علبة | H155: =ROUND(Table1[[#This Row],[السعر]],2) -> 0.8
A156: صابون 25 جم | B156: 2.25 | C156: قطعة | D156: نايل بالاس | E156: جم | F156: صابون 25 جم_نايل بالاس | G156: =Table1[[#This Row],[الصنف]] -> صابون 25 جم | H156: =ROUND(Table1[[#This Row],[السعر]],2) -> 2.25
A157: لوف | B157: 6.25 | C157: قطعة | D157: جراند اوشن السخنة | E157: جم | F157: لوف_جراند اوشن السخنة | G157: =Table1[[#This Row],[الصنف]] -> لوف | H157: =ROUND(Table1[[#This Row],[السعر]],2) -> 6.25
A158: مجموعة اسنان | B158: 7.25 | C158: قطعة | D158: جراند اوشن السخنة | E158: جم | F158: مجموعة اسنان_جراند اوشن السخنة | G158: =Table1[[#This Row],[الصنف]] -> مجموعة اسنان | H158: =ROUND(Table1[[#This Row],[السعر]],2) -> 7.25
A159: مجموعة حلاقة | B159: 7.25 | C159: قطعة | D159: جراند اوشن السخنة | E159: جم | F159: مجموعة حلاقة_جراند اوشن السخنة | G159: =Table1[[#This Row],[الصنف]] -> مجموعة حلاقة | H159: =ROUND(Table1[[#This Row],[السعر]],2) -> 7.25
A160: سنتري باج | B160: 1.4 | C160: قطعة | D160: جراند اوشن السخنة | E160: جم | F160: سنتري باج_جراند اوشن السخنة | G160: =Table1[[#This Row],[الصنف]] -> سنتري باج | H160: =ROUND(Table1[[#This Row],[السعر]],2) -> 1.4
A161: لبيسة | B161: 2.5 | C161: قطعة | D161: جراند اوشن السخنة | E161: جم | F161: لبيسة_جراند اوشن السخنة | G161: =Table1[[#This Row],[الصنف]] -> لبيسة | H161: =ROUND(Table1[[#This Row],[السعر]],2) -> 2.5
A162: سليبر | B162: 17 | C162: قطعة | D162: جراند اوشن السخنة | E162: جم | F162: سليبر_جراند اوشن السخنة | G162: =Table1[[#This Row],[الصنف]] -> سليبر | H162: =ROUND(Table1[[#This Row],[السعر]],2) -> 17
A163: شامبو 40 ملل vip | B163: 6.5 | C163: عبوة | D163: جراند اوشن السخنة | E163: جم | F163: شامبو 40 ملل vip_جراند اوشن السخنة | G163: =Table1[[#This Row],[الصنف]] -> شامبو 40 ملل vip | H163: =ROUND(Table1[[#This Row],[السعر]],2) -> 6.5
A164: باث جل 40 ملل vip | B164: 6.5 | C164: عبوة | D164: جراند اوشن السخنة | E164: جم | F164: باث جل 40 ملل vip_جراند اوشن السخنة | G164: =Table1[[#This Row],[الصنف]] -> باث جل 40 ملل vip | H164: =ROUND(Table1[[#This Row],[السعر]],2) -> 6.5
A165: بلسم 40 ملل vip | B165: 7.5 | C165: عبوة | D165: جراند اوشن السخنة | E165: جم | F165: بلسم 40 ملل vip_جراند اوشن السخنة | G165: =Table1[[#This Row],[الصنف]] -> بلسم 40 ملل vip | H165: =ROUND(Table1[[#This Row],[السعر]],2) -> 7.5
A166: لوشن 40 ملل vip | B166: 7.5 | C166: عبوة | D166: جراند اوشن السخنة | E166: جم | F166: لوشن 40 ملل vip_جراند اوشن السخنة | G166: =Table1[[#This Row],[الصنف]] -> لوشن 40 ملل vip | H166: =ROUND(Table1[[#This Row],[السعر]],2) -> 7.5
A167: شامبو 40 ملل | B167: 3.947368421 | C167: عبوة | D167: الماسة | E167: جم | F167: شامبو 40 ملل_الماسة | G167: =Table1[[#This Row],[الصنف]] -> شامبو 40 ملل | H167: =ROUND(Table1[[#This Row],[السعر]],2) -> 3.95
A168: باث جل 40 ملل | B168: 3.947368421 | C168: عبوة | D168: الماسة | E168: جم | F168: باث جل 40 ملل_الماسة | G168: =Table1[[#This Row],[الصنف]] -> باث جل 40 ملل | H168: =ROUND(Table1[[#This Row],[السعر]],2) -> 3.95
A169: بلسم 40 ملل | B169: 4.245614035 | C169: عبوة | D169: الماسة | E169: جم | F169: بلسم 40 ملل_الماسة | G169: =Table1[[#This Row],[الصنف]] -> بلسم 40 ملل | H169: =ROUND(Table1[[#This Row],[السعر]],2) -> 4.25
A170: لوشن 40 ملل | B170: 4.245614035 | C170: عبوة | D170: الماسة | E170: جم | F170: لوشن 40 ملل_الماسة | G170: =Table1[[#This Row],[الصنف]] -> لوشن 40 ملل | H170: =ROUND(Table1[[#This Row],[السعر]],2) -> 4.25
A171: شاور كاب | B171: 1.403508772 | C171: قطعة | D171: الماسة | E171: جم | F171: شاور كاب_الماسة | G171: =Table1[[#This Row],[الصنف]] -> شاور كاب | H171: =ROUND(Table1[[#This Row],[السعر]],2) -> 1.4
A172: سيونج كيت | B172: 1.403508772 | C172: قطعة | D172: الماسة | E172: جم | F172: سيونج كيت _الماسة | G172: =Table1[[#This Row],[الصنف]] -> سيونج كيت | H172: =ROUND(Table1[[#This Row],[السعر]],2) -> 1.4
A173: فينتي كيت | B173: 2.631578947 | C173: قطعة | D173: الماسة | E173: جم | F173: فينتي كيت _الماسة | G173: =Table1[[#This Row],[الصنف]] -> فينتي كيت | H173: =ROUND(Table1[[#This Row],[السعر]],2) -> 2.63
A174: قطن سوابس | B174: 1.754385965 | C174: قطعة | D174: الماسة | E174: جم | F174: قطن سوابس_الماسة | G174: =Table1[[#This Row],[الصنف]] -> قطن سوابس | H174: =ROUND(Table1[[#This Row],[السعر]],2) -> 1.75
A175: قطن ميكأب | B175: 1.754385965 | C175: قطعة | D175: الماسة | E175: جم | F175: قطن ميكأب_الماسة | G175: =Table1[[#This Row],[الصنف]] -> قطن ميكأب | H175: =ROUND(Table1[[#This Row],[السعر]],2) -> 1.75
A176: شوميت | B176: 2.5 | C176: قطعة | D176: الماسة | E176: جم | F176: شوميت_الماسة | G176: =Table1[[#This Row],[الصنف]] -> شوميت | H176: =ROUND(Table1[[#This Row],[السعر]],2) -> 2.5
A177: لوف | B177: 5.48245614 | C177: قطعة | D177: الماسة | E177: جم | F177: لوف_الماسة | G177: =Table1[[#This Row],[الصنف]] -> لوف | H177: =ROUND(Table1[[#This Row],[السعر]],2) -> 5.48
A178: مجموعة اسنان | B178: 6.140350877 | C178: قطعة | D178: الماسة | E178: جم | F178: مجموعة اسنان_الماسة | G178: =Table1[[#This Row],[الصنف]] -> مجموعة اسنان | H178: =ROUND(Table1[[#This Row],[السعر]],2) -> 6.14
A179: مجموعة حلاقة | B179: 7.245614035 | C179: قطعة | D179: الماسة | E179: جم | F179: مجموعة حلاقة_الماسة | G179: =Table1[[#This Row],[الصنف]] -> مجموعة حلاقة | H179: =ROUND(Table1[[#This Row],[السعر]],2) -> 7.25
A180: مشط شعر | B180: 1.754385965 | C180: قطعة | D180: الماسة | E180: جم | F180: مشط شعر_الماسة | G180: =Table1[[#This Row],[الصنف]] -> مشط شعر | H180: =ROUND(Table1[[#This Row],[السعر]],2) -> 1.75
A181: لبيسة | B181: 2 | C181: قطعة | D181: الماسة | E181: جم | F181: لبيسة_الماسة | G181: =Table1[[#This Row],[الصنف]] -> لبيسة | H181: =ROUND(Table1[[#This Row],[السعر]],2) -> 2
A182: مبرد | B182: 1.885964912 | C182: قطعة | D182: الماسة | E182: جم | F182: مبرد_الماسة | G182: =Table1[[#This Row],[الصنف]] -> مبرد | H182: =ROUND(Table1[[#This Row],[السعر]],2) -> 1.89
A183: سليبر | B183: 15.35087719 | C183: قطعة | D183: الماسة | E183: جم | F183: سليبر_الماسة | G183: =Table1[[#This Row],[الصنف]] -> سليبر | H183: =ROUND(Table1[[#This Row],[السعر]],2) -> 15.35
A184: صابون 35 جم | B184: 3 | C184: قطعة | D184: الماسة | E184: جم | F184: صابون 35 جم_الماسة | G184: =Table1[[#This Row],[الصنف]] -> صابون 35 جم | H184: =ROUND(Table1[[#This Row],[السعر]],2) -> 3
A185: صابون 50 جم | B185: 4 | C185: قطعة | D185: الماسة | E185: جم | F185: صابون 50 جم_الماسة | G185: =Table1[[#This Row],[الصنف]] -> صابون 50 جم | H185: =ROUND(Table1[[#This Row],[السعر]],2) -> 4
A186: شامبو 35 ملل | B186: 2.8 | C186: عبوة | D186: سيتي فرست | E186: جم | F186: شامبو 35 ملل_سيتي فرست | G186: =Table1[[#This Row],[الصنف]] -> شامبو 35 ملل | H186: =ROUND(Table1[[#This Row],[السعر]],2) -> 2.8
A187: باث جل 35 ملل | B187: 2.8 | C187: عبوة | D187: سيتي فرست | E187: جم | F187: باث جل 35 ملل_سيتي فرست | G187: =Table1[[#This Row],[الصنف]] -> باث جل 35 ملل | H187: =ROUND(Table1[[#This Row],[السعر]],2) -> 2.8
A188: بلسم 35 ملل | B188: 3 | C188: عبوة | D188: سيتي فرست | E188: جم | F188: بلسم 35 ملل_سيتي فرست | G188: =Table1[[#This Row],[الصنف]] -> بلسم 35 ملل | H188: =ROUND(Table1[[#This Row],[السعر]],2) -> 3
A189: لوشن 35 ملل | B189: 3 | C189: عبوة | D189: سيتي فرست | E189: جم | F189: لوشن 35 ملل_سيتي فرست | G189: =Table1[[#This Row],[الصنف]] -> لوشن 35 ملل | H189: =ROUND(Table1[[#This Row],[السعر]],2) -> 3
A190: شاور كاب | B190: 1.6 | C190: قطعة | D190: سيتي فرست | E190: جم | F190: شاور كاب_سيتي فرست | G190: =Table1[[#This Row],[الصنف]] -> شاور كاب | H190: =ROUND(Table1[[#This Row],[السعر]],2) -> 1.6
A191: سيونج كيت | B191: 1.6 | C191: قطعة | D191: سيتي فرست | E191: جم | F191: سيونج كيت _سيتي فرست | G191: =Table1[[#This Row],[الصنف]] -> سيونج كيت | H191: =ROUND(Table1[[#This Row],[السعر]],2) -> 1.6
A192: شوميت | B192: 2.8 | C192: قطعة | D192: سيتي فرست | E192: جم | F192: شوميت_سيتي فرست | G192: =Table1[[#This Row],[الصنف]] -> شوميت | H192: =ROUND(Table1[[#This Row],[السعر]],2) -> 2.8
A193: لوف | B193: 6.5 | C193: قطعة | D193: سيتي فرست | E193: جم | F193: لوف_سيتي فرست | G193: =Table1[[#This Row],[الصنف]] -> لوف | H193: =ROUND(Table1[[#This Row],[السعر]],2) -> 6.5
A194: مجموعة اسنان | B194: 7.5 | C194: قطعة | D194: سيتي فرست | E194: جم | F194: مجموعة اسنان_سيتي فرست | G194: =Table1[[#This Row],[الصنف]] -> مجموعة اسنان | H194: =ROUND(Table1[[#This Row],[السعر]],2) -> 7.5
A195: مجموعة حلاقة | B195: 7.5 | C195: قطعة | D195: سيتي فرست | E195: جم | F195: =A195&"_"&D195 -> مجموعة حلاقة_سيتي فرست | G195: =Table1[[#This Row],[الصنف]] -> مجموعة حلاقة | H195: =ROUND(Table1[[#This Row],[السعر]],2) -> 7.5
A196: سنتري باج | B196: 1.6 | C196: قطعة | D196: سيتي فرست | E196: جم | F196: سنتري باج_سيتي فرست | G196: =Table1[[#This Row],[الصنف]] -> سنتري باج | H196: =ROUND(Table1[[#This Row],[السعر]],2) -> 1.6
A197: سليبر | B197: 18.5 | C197: قطعة | D197: سيتي فرست | E197: جم | F197: سليبر_سيتي فرست | G197: =Table1[[#This Row],[الصنف]] -> سليبر | H197: =ROUND(Table1[[#This Row],[السعر]],2) -> 18.5
A198: صابون 25 جم | B198: 3 | C198: قطعة | D198: سيتي فرست | E198: جم | F198: صابون 25 جم_سيتي فرست | G198: =Table1[[#This Row],[الصنف]] -> صابون 25 جم | H198: =ROUND(Table1[[#This Row],[السعر]],2) -> 3
A199: شامبو 40 ملل | B199: 2.9 | C199: عبوة | D199: فيستا | E199: جم | F199: شامبو 40 ملل_فيستا | G199: =Table1[[#This Row],[الصنف]] -> شامبو 40 ملل | H199: =ROUND(Table1[[#This Row],[السعر]],2) -> 2.9
A200: باث جل 40 ملل | B200: 2.9 | C200: عبوة | D200: فيستا | E200: جم | F200: باث جل 40 ملل_فيستا | G200: =Table1[[#This Row],[الصنف]] -> باث جل 40 ملل | H200: =ROUND(Table1[[#This Row],[السعر]],2) -> 2.9
... 53 more rows

Sheet العملاء
A1: م | B1: اسم العميل | C1: كود | D1: رقم السجل التجاري | E1: العنوان | F1: الايميل | G1: المسئول | H1: تليفون
A2: 1 | B2: سوفتيل الجزيرة | C2: 1001 | D2: 204957869
A3: 2 | B3: جاز بلفدير شرم | C3: 1002 | D3: 200655639
A4: 3 | B4: هيلتون مركز التجارة | C4: 1003
A5: 4 | B5: هيلتون رمسيس | C5: 1004 | D5: 100272754
A6: 5 | B6: هيلتون الزمالك | C6: 1005
A7: 6 | B7: هيلتون بلازا الغردقة | C7: 1006 | D7: 200139258
A8: 7 | B8: هيلتون الكورنيش اسكندرية | C8: 1007 | D8: 204902223
A9: 8 | B9: هيلتون كينج رانش برج العرب | C9: 1008 | D9: 202463540
A10: 9 | B10: هيلتون جرين بلازا اسكندرية | C10: 1009 | D10: 200246216
A11: 10 | B11: هيلتون نوبيا مرسي علم | C11: 1010 | D11: 713348542
A12: 11 | B12: جاز فنارة شرم | C12: 1011 | D12: 205080197
A13: 12 | B13: JW Marriott | C13: 1012
A14: 13 | B14: نقدا | C14: 1013
A15: 14 | B15: شتايجن برجر كايرو بيراميدز | C15: 1014 | D15: 540266124
A16: 15 | B16: هيلتون هيلوبوليس المطار | C16: 1015
A17: 16 | B17: جاز ابروتيل برج العرب | C17: 1016 | D17: 572602766
A18: 17 | B18: شتايجن برجر سيسل اسكندرية | C18: 1017 | D18: 200157957
A19: 18 | B19: جاز اكوا مارين الغردقه | C19: 1018 | D19: 452571944
A20: 19 | B20: جاز ابروتيل بالاس شرم | C20: 1019 | D20: 204928257
A21: 20 | B21: شتايجن برجر الكازار شرم | C21: 1020 | D21: 204963036
A22: 21 | B22: جاز مرابيل بيتش شرم | C22: 1021 | D22: 204938643
A23: 22 | B23: شتايجن برجر الاقصر اشتي ريزورت | C23: 1022
A24: 23 | B24: DUSIT | C24: 1023
A25: 24 | B25: جاز كلوب مكادي مكادينا | C25: 1024
A26: 25 | B26: شتايجن برجر رأس سوما | C26: 1025
A27: 26 | B27: جاز ابروتيل الاقصر | C27: 1026
A28: 27 | B28: شتايجن برجر نايل بالاس الاقصر | C28: 1027
A29: 28 | B29: جاز اكوا فيفا مكادي | C29: 1028
A30: 29 | B30: DINA ISKANDER | C30: 1029
A31: 30 | B31: جاز مكادي صن | C31: 1030
A32: 31 | B32: جاز كورايا مرسي علم | C32: 1031
A33: 32 | B33: جاز دهبية | C33: 1032
A34: 33 | B34: جاز سوليمار سوما بيتش | C34: 1033
A35: 34 | B35: جاز ابروتيل كوستا مرسي علم | C35: 1034
A36: 35 | B36: جاز ابروتيل شرم | C36: 1035
A37: 36 | B37: فندق الماسة | C37: 1036
A38: 37 | B38: شتايجن برجر اللسان رأس البر | C38: 1037
A39: 38 | B39: شتايجين برجر سيسل | C39: 1038
A40: 39 | B40: جاز ابروتيل فنارة | C40: 1039
A41: 40 | B41: جاز ميرابيل بيتش | C41: 1040
A42: 41 | B42: جاز بيل فيدير | C42: 1041
A43: 42 | B43: جاز السخنة | C43: 1042
A44: 43 | B44: جاز مكادى اوزايس | C44: 1043
A45: 44 | B45: جاز كورايا مرسي علم | C45: 1044
A46: 45 | B46: شتايجن برجر اكوا ماجيك الداو | C46: 1045
A47: 46 | B47: جاز الماظة بيتش مطروح | C47: 1046
A48: 47 | B48: جاز ابروتيل مكادى بيتش | C48: 1047
A49: 48 | B49: جاز جراند ريستا | C49: 1048
A50: 49 | B50: كازا دلمار ( جراند بلازا) | C50: 1049
A51: 50 | B51: شتايجن الهرم | C51: 1050
A52: 51 | B52: ابروتيل كوستا مرسى علم | C52: 1051
A53: 52 | B53: شتايجن مكادي سرايا بالمز | C53: 1052
A54: 53 | B54: جراند اوشن السخنة | C54: 1053
A55: 54 | B55: ماجيك وورلد شرم | C55: 1054
A56: 55 | B56: شتايجن كورايا مرسي علم | C56: 1055
A57: 56 | B57: الماظة شرم | C57: 1056
A58: 57 | B58: شتايجن برجر رأس سوما | C58: 1057
A59: 58 | B59: هيلتون بيراميدز الجولف | C59: 1058 | D59: 200226215
A60: 59 | B60: الخليج الازرق للاستثمار السياحى | C60: 1059
A61: 60 | B61: هيلتون هليوبوليس القاهرة | C61: 1060
A62: 61 | B62: جاز مكادي سنسمار | C62: 1061
A63: 62 | B63: شتايجن برجر الداو بيتش الغردقة | C63: 1062
A64: 63 | B64: فيستا | C64: 1063
A65: 64 | B65: سوليمار بايونيرز الواحات | C65: 1064
A66: 65 | B66: فور سيزون | C66: 1065
A67: 66 | B67: سيتى ابو سمبل | C67: 1066
A68: 67 | B68: ST.Regis | C68: 1067
A69: 68 | B69: sivol LDA Angola | C69: 1068
A70: 69 | B70: Erwan hotel | C70: 1069
A71: 70 | B71: فيستا الغردقة | C71: 1070
A72: 71 | B72: سيتى شرم | C72: 1071
A73: 72 | B73: هيلتون شاركس باى شرم | C73: 1072

Sheet الأصناف
A1: م | B1: الصنف | C1: Item | D1: cost | E1: Balance
A2: 1 | B2: شامبو 30
A3: 2 | B3: باث جل 30
A4: 3 | B4: بلسم 30
A5: 4 | B5: لوشن 30
A6: 5 | B6: شامبو 45
A7: 6 | B7: بادي ووش 45
A8: 7 | B8: بلسم 45
A9: 8 | B9: لوشن 45
A10: 9 | B10: مجموعة اسنان لوكس
A11: 10 | B11: مجموعة اسنان
A12: 11 | B12: مجموعة حلاقة
A13: 12 | B13: مجموعة حلاقة لوكس
A14: 13 | B14: لوف
A15: 14 | B15: سيونج كيت
A16: 15 | B16: شاور كاب
A17: 16 | B17: قطن سوابس
A18: 17 | B18: فينتي كيت
A19: 18 | B19: شوميت
A20: 19 | B20: لبيسة
A21: 20 | B21: قطن ميكأب 2 ق
A22: 21 | B22: مبرد
A23: 22 | B23: مشط شعر
A24: 23 | B24: غسول فم
A25: 24 | B25: شبشب عادي
A26: 25 | B26: شبشب مميز
A27: 26 | B27: ملح حمام
A28: 27 | B28: سنتري باج
A29: 28 | B29: صابون 25
A30: 29 | B30: صابون 35
A31: 30 | B31: شامبو 40 ملل
A32: 31 | B32: باث جل 40 ملل
A33: 32 | B33: بلسم 40 ملل
A34: 33 | B34: لوشن 40 ملل
A35: 34 | B35: شامبو 80 ملل
A36: 35 | B36: باث جل 80 ملل
A37: 36 | B37: بلسم 80 ملل
A38: 37 | B38: لوشن 80 ملل
A39: 38 | B39: سيونج كيت
A40: 39 | B40: فينتي كيت
A41: 40 | B41: صابون 30 جم
A42: 41 | B42: صابون 50 جم
A43: 42 | B43: جراكن شامبو 4 لتر
A44: 43 | B44: جراكن شاور جل 4 لتر
A45: 44 | B45: جراكن هاند سوب 4 لتر
A46: 45 | B46: جراكن لوشن 4 لتر
A47: 46 | B47: قطن سوابس
A48: 47 | B48: شامبو 40 ملل
A49: 48 | B49: شاور جل 40 ملل
A50: 49 | B50: شامبو تيوب 80
A51: 50 | B51: بادي ووش تيوب 80
A52: 51 | B52: بلسم تيوب 80
A53: 52 | B53: لوشن تيوب 80
A54: 53 | B54: فينتي كيت (قطن دائري )
A55: 54 | B55: قطن سوابس 3 عود
A56: 55 | B56: قطن سوابس 2 عود
A57: 56 | B57: قطن ميكأب
A58: 57 | B58: صابون 30
A59: 58 | B59: صابون 50
A60: 59 | B60: قطن ميكأب ( 1 قطعة )
A61: 60 | B61: قطن ميكأب ( 2 قطعة )
A62: 61 | B62: صابون 25 جم
A63: 62 | B63: صابون 35 جم
A64: 63 | B64: شامبو 30 ملل
A65: 64 | B65: رغوة 30 ملل
A66: 65 | B66: بلسم 30 ملل
A67: 66 | B67: لوشن 30 ملل
A68: 67 | B68: شاور كاب بدون علبة
A69: 68 | B69: علب اسنان مطبوعة فارغة
A70: 69 | B70: علب لوف مطبوعة فارغة
A71: 70 | B71: علب سنتري مطبوعة فارغة
A72: 71 | B72: علب سيونج كيت مطبوعة فارغة
A73: 72 | B73: علب حلاقة مطبوعة فارغة
A74: 73 | B74: علب شوميت مطبوعة فارغة
A75: 74 | B75: علب قطن ميكأب مطبوعة فارغة
A76: 75 | B76: علب شاور كاب ميكأب مطبوعة فارغة
A77: 76 | B77: قطن سوابس بدون علبة
A78: 77 | B78: قطن ميكأب بدون علبة
A79: 78 | B79: مبرد بدون علبة
A80: 79 | B80: سليبر
A81: 80 | B81: شامبو 40 ملل vip
A82: 81 | B82: باث جل 40 ملل vip
A83: 82 | B83: بلسم 40 ملل vip
A84: 83 | B84: لوشن 40 ملل vip
A85: 84 | B85: شامبو 35 ملل
A86: 85 | B86: باث جل 35 ملل
A87: 86 | B87: بلسم 35 ملل
A88: 87 | B88: لوشن 35 ملل
A89: 88 | B89: شامبو 30ملل
A90: 89 | B90: صواني
A91: 90 | B91: سليبر مفتوح 1
A92: 91 | B92: سليبر مفتوح 2
A93: 92 | B93: شامبو 35 ملل
A94: 93 | B94: رغوة 35 ملل
A95: 94 | B95: رغوة 40 ملل
